bitfinex/quotes_ETHUSD_20251011
["timestamp","ask_amount","ask_price","bid_price","bid_amount"]
[1760153357058,0.001,3796.6,3795.5,0.4398]
[1760153357854,0.001,3796.6,3795.6,0.02634629]
[1760153358269,0.001,3796.6,3795.6,0.65994629]
[1760153358429,0.001,3796.6,3795.8,0.6336]
[1760153358944,0.001,3796.6,3795.8,0.4378]
[1760153360462,0.001,3796.6,3795.5,0.02834698]
[1760153360754,0.001,3796.6,3795.9,0.4378]
[1760153362474,0.001,3796.6,3796.0,0.02634351]
[1760153363036,0.001,3796.6,3796.1,0.4378]
[1760153363373,0.001,3796.6,3796.2,0.02634212]
[1760153363666,0.001,3796.6,3796.2,0.4378]
[1760153364039,0.001,3796.6,3796.3,0.4378]
[1760153364357,0.001,3796.6,3796.4,0.44346227]
[1760153364558,0.001,3796.6,3796.4,0.00566227]
[1760153364726,0.001,3796.6,3795.8,0.002]
[1760153365468,0.4595,3796.6,3795.8,0.002]
[1760153365633,0.81204007,3796.6,3795.8,0.002]
[1760153365959,0.4595,3796.6,3795.8,0.002]
[1760153366158,0.2268,3795.9,3795.8,0.002]
[1760153366530,0.4585,3796.2,3795.8,0.002]
[1760153366856,0.4585,3795.9,3795.8,0.002]
[1760153367068,0.6853,3795.9,3795.8,0.002]
[1760153367861,0.64278298,3796.5,3795.8,0.002]
[1760153368046,2.63400563,3796.5,3795.8,0.002]
[1760153368388,0.4585,3796.4,3795.8,0.002]
[1760153368535,0.2268,3795.9,3795.8,0.002]
[1760153368735,0.57934007,3795.9,3795.8,0.002]
[1760153369094,6.56130667,3795.9,3795.8,0.002]
[1760153369234,6.85154958,3795.9,3795.8,0.002]
[1760153369773,8.2361775,3795.9,3795.8,0.002]
[1760153369976,8.2361775,3795.9,3791.9,0.10788971]
[1760153370129,2.63518573,3794.8,3791.6,2.63734089]
[1760153370324,2.63518573,3794.8,3790.6,0.1501]
[1760153370325,0.74874291,3794.7,3792.0,0.0008]
[1760153370542,0.74874291,3794.7,3791.8,0.10589392]
[1760153370741,0.74874291,3794.7,3791.9,0.6344]
[1760153370940,2.3785,3794.6,3791.9,0.0008]
[1760153371160,2.3785,3794.6,3790.1,0.005]
[1760153371161,1.25928817,3794.5,3790.1,0.005]
[1760153371362,2.63572796,3794.1,3790.8,0.79438949]
[1760153371561,3.38449355,3794.0,3790.9,0.0008]
[1760153371773,3.38449355,3794.0,3790.9,0.6336]
[1760153371941,0.35254007,3794.1,3790.7,0.79518949]
[1760153371942,3.32114699,3793.9,3790.7,0.79518949]
[1760153372279,0.4585,3793.8,3791.0,0.0494]
[1760153373552,0.4585,3793.8,3791.1,0.6336]
[1760153373744,0.4585,3793.7,3791.2,0.0494]
[1760153375064,1.92,3793.5,3791.2,0.0494]
[1760153375395,0.4585,3793.4,3791.3,0.6336]
[1760153375588,2.63630402,3793.2,3791.2,0.0494]
[1760153375800,2.3785,3793.1,3790.5,0.0494]
[1760153375945,2.63659942,3792.8,3790.5,0.0494]
[1760153376393,2.3785,3792.7,3790.5,0.0494]
[1760153376597,1.92,3792.4,3790.0,0.1371]
[1760153376747,1.92,3792.2,3790.0,0.1371]
[1760153376949,0.35254007,3792.1,3790.2,0.0008]
[1760153377273,0.35254007,3792.1,3790.0,0.1865]
[1760153377274,2.98962825,3792.1,3790.0,0.1865]
[1760153377488,0.4585,3792.0,3790.0,0.1865]
[1760153377686,0.5963092,3792.0,3790.0,0.1865]
[1760153377913,0.2268,3791.9,3790.0,0.1865]
[1760153378380,0.2238,3791.9,3790.0,0.1865]
[1760153378546,0.4585,3791.8,3790.0,0.1865]
[1760153379867,0.4585,3791.8,3790.2,0.02638383]
[1760153380784,0.1378092,3792.0,3790.3,0.0524]
[1760153380985,0.1378092,3792.0,3790.4,0.02638243]
[1760153381150,0.1378092,3792.0,3790.5,0.0524]
[1760153381352,0.1378092,3792.0,3790.6,0.02638104]
[1760153381549,0.1378092,3792.0,3790.7,0.0524]
[1760153381755,0.1378092,3792.0,3790.8,0.02637965]
[1760153381955,0.1378092,3792.0,3790.7,0.0524]
[1760153382383,0.1378092,3792.0,3790.8,0.6336]
[1760153382685,0.1378092,3792.0,3790.1,0.03337965]
[1760153382686,0.1378092,3792.0,3791.0,0.6336]
[1760153382851,0.1378092,3792.0,3791.2,0.6336]
[1760153383056,0.1378092,3792.0,3791.3,0.0524]
[1760153383709,0.1378092,3792.0,3791.4,0.6336]
[1760153383992,0.2268,3793.9,3791.5,0.0524]
[1760153384207,0.13776037,3792.7,3791.5,0.0524]
[1760153384400,0.4585,3793.8,3791.5,0.0524]
[1760153385271,2.05775778,3793.7,3791.5,0.0524]
[1760153385472,0.80774007,3793.6,3791.5,0.0524]
[1760153385676,0.4552,3793.6,3791.5,0.0524]
[1760153386109,0.13775778,3793.7,3791.6,0.6336]
[1760153386264,0.13775778,3793.7,3791.8,0.6336]
[1760153386464,0.13775778,3793.7,3791.9,0.0524]
[1760153387400,0.13775778,3793.7,3792.0,0.6336]
[1760153387598,0.13775778,3793.7,3792.2,0.6336]
[1760153388199,0.13775778,3793.7,3792.4,0.6336]
[1760153388367,0.13775778,3793.7,3792.3,0.0524]
[1760153389686,0.59295778,3793.7,3792.3,0.0524]
[1760153390493,0.59295778,3793.7,3791.9,0.0524]
[1760153392095,2.63608376,3793.6,3791.4,0.0524]
[1760153392296,2.3914,3793.5,3791.4,0.0524]
[1760153392496,0.98614007,3793.4,3790.9,0.0524]
[1760153392731,1.92,3792.8,3790.4,0.0524]
[1760153392896,0.4714,3792.7,3790.4,0.0524]
[1760153393601,0.4714,3792.7,3790.5,0.6336]
[1760153393803,0.6336,3793.6,3790.7,0.6336]
[1760153394002,0.4714,3793.1,3790.9,0.6336]
[1760153394231,0.4714,3793.1,3791.1,0.6336]
[1760153394498,0.4714,3793.1,3791.2,0.0524]
[1760153395197,2.3914,3793.1,3790.1,0.6406]
[1760153395411,0.4714,3793.0,3790.9,0.6336]
[1760153395700,0.4714,3792.9,3790.9,0.6336]
[1760153395895,0.4714,3792.8,3790.9,0.6336]
[1760153396129,0.4714,3792.8,3791.0,0.0524]
[1760153397538,0.4714,3793.2,3791.0,0.0524]
[1760153397710,2.3914,3793.2,3791.0,0.0524]
[1760153397905,5.02771057,3793.2,3791.0,0.0524]
[1760153398108,0.4714,3793.2,3791.0,0.0524]
[1760153398529,1.92,3793.1,3791.0,0.0524]
[1760153398834,0.4714,3793.0,3791.0,0.0524]
[1760153399906,2.3914,3793.0,3791.0,0.0544]
[1760153400213,0.6336,3792.9,3791.0,0.0544]
[1760153400537,0.4714,3792.8,3790.8,0.0044]
[1760153400738,2.63677333,3792.6,3790.6,0.002]
[1760153401040,2.5536,3792.3,3790.6,0.002]
[1760153401242,0.65035445,3792.2,3790.6,0.002]
[1760153401407,0.4714,3792.5,3790.6,0.002]
[1760153402239,2.6365784,3792.8,3790.6,0.002]
[1760153402452,0.29781438,3793.3,3790.7,0.0044]
[1760153402607,0.4714,3792.4,3790.6,0.002]
[1760153402804,1.92,3791.6,3790.6,0.002]
[1760153403018,1.92,3791.2,3790.6,0.002]
[1760153403223,3.04175445,3791.5,3790.6,0.002]
[1760153403534,0.4714,3791.2,3790.6,0.002]
[1760153404048,1.92,3791.1,3790.6,0.002]
[1760153404345,0.4714,3791.2,3790.6,0.002]
[1760153404549,0.4714,3791.0,3790.6,0.002]
[1760153404747,1.92,3792.1,3790.6,0.002]
[1760153405056,0.4714,3792.2,3790.7,0.0044]
[1760153405463,0.4714,3792.2,3790.6,0.002]
[1760153405643,2.63768858,3791.2,3790.6,0.002]
[1760153405961,0.35254007,3791.1,3790.6,0.002]
[1760153406125,2.83961855,3791.4,3790.6,0.002]
[1760153406318,1.92,3790.7,3790.2,0.002]
[1760153406556,1.92,3790.7,3790.1,0.007]
[1760153406557,2.63823092,3790.5,3790.1,0.007]
[1760153406719,2.5536,3790.5,3790.1,0.007]
[1760153406926,0.4714,3790.4,3790.1,0.007]
[1760153407340,0.4714,3790.3,3790.1,0.007]
[1760153407658,2.63858915,3790.0,3789.3,0.002]
[1760153407869,0.2291,3789.8,3789.3,0.002]
[1760153408038,4.78776167,3789.8,3789.3,0.002]
[1760153408221,5.25916167,3789.8,3789.3,0.002]
[1760153408422,5.89276167,3789.8,3789.3,0.002]
[1760153410032,0.2291,3790.4,3789.3,0.002]
[1760153410232,0.4714,3789.8,3789.3,0.002]
[1760153410433,1.105,3790.3,3789.3,0.002]
[1760153411021,0.4714,3790.3,3789.3,0.002]
[1760153411259,3.10888006,3791.5,3789.7,0.0124]
[1760153411424,4.5577176,3791.2,3789.7,0.0124]
[1760153411631,3.10890738,3791.5,3789.7,0.002]
[1760153411632,1.92,3791.4,3789.7,0.002]
[1760153411827,2.63824636,3790.4,3789.7,0.002]
[1760153412127,2.63817438,3790.5,3789.7,0.002]
[1760153412343,1.92,3790.0,3789.7,0.002]
[1760153412657,0.4714,3790.3,3789.7,0.002]
[1760153412825,0.4714,3789.9,3789.7,0.002]
[1760153413224,2.5536,3790.7,3789.7,0.002]
[1760153413456,0.4714,3790.3,3789.7,0.002]
[1760153413847,2.63818526,3790.5,3789.7,0.002]
[1760153413848,0.6336,3790.6,3789.7,0.002]
[1760153414047,5.19164025,3790.7,3789.7,0.002]
[1760153414048,1.92,3790.7,3789.7,0.002]
[1760153414248,1.92,3790.8,3789.7,0.002]
[1760153414437,0.4714,3790.9,3789.7,0.002]
[1760153414639,0.4714,3790.7,3789.7,0.002]
[1760153414838,2.3914,3790.7,3789.7,0.002]
[1760153415069,0.6336,3790.4,3789.7,0.002]
[1760153415265,2.63893902,3789.5,3789.3,0.002]
[1760153415433,4.5589402,3789.4,3789.3,0.002]
[1760153415634,4.9999402,3789.4,3789.3,0.002]
[1760153415964,2.5536,3789.3,3788.1,0.005]
[1760153416164,2.5536,3789.1,3788.1,0.005]
[1760153416369,2.6394248,3788.8,3788.1,0.005]
[1760153416567,1.92,3788.8,3788.1,0.005]
[1760153416739,1.92,3788.3,3787.1,0.005]
[1760153416943,0.6336,3788.2,3787.1,0.005]
[1760153417161,1.92,3787.7,3787.1,0.005]
[1760153417362,2.64026948,3787.5,3787.1,0.005]
[1760153417630,1.92,3787.4,3787.1,0.005]
[1760153417831,0.441,3787.4,3787.1,0.005]
[1760153418068,0.441,3787.3,3787.1,0.005]
[1760153418439,0.441,3787.3,3786.1,0.005]
[1760153418440,1.39285495,3787.0,3786.1,0.005]
[1760153418666,1.92,3786.3,3786.1,0.005]
[1760153418967,1.30233149,3786.3,3785.1,0.005]
[1760153419134,0.6336,3786.1,3785.1,0.005]
[1760153419333,2.64138932,3785.9,3785.1,0.005]
[1760153419565,0.441,3786.0,3785.1,0.005]
[1760153419764,1.92,3785.5,3785.1,0.005]
[1760153419941,2.64166712,3785.5,3785.0,0.69786109]
[1760153420140,0.441,3785.4,3785.0,0.69786109]
[1760153420363,0.441,3785.3,3785.0,0.69786109]
[1760153420582,0.441,3785.2,3785.0,0.69786109]
[1760153421157,0.441,3785.1,3785.0,0.69786109]
[1760153421485,3.08293812,3785.1,3785.0,0.69786109]
[1760153421796,2.361,3785.1,3785.0,0.69786109]
[1760153422587,5.00293812,3785.1,3785.0,0.69786109]
[1760153423155,1.92,3785.1,3785.0,0.69786109]
[1760153423354,0.441,3786.4,3785.0,0.69786109]
[1760153423656,0.2335,3786.9,3785.0,0.71226109]
[1760153423991,0.41429846,3786.5,3785.1,0.648]
[1760153424159,0.41429846,3786.5,3785.2,0.0144]
[1760153425385,0.2335,3788.0,3785.4,0.6336]
[1760153425585,0.2335,3788.0,3785.6,0.6336]
[1760153425789,0.2335,3788.0,3785.7,0.0144]
[1760153425991,0.441,3788.6,3785.8,0.6336]
[1760153426171,2.63957381,3788.5,3785.9,0.0144]
[1760153426364,0.441,3789.2,3786.3,0.6336]
[1760153426565,2.63720642,3791.9,3787.0,2.64058997]
[1760153426566,0.441,3789.8,3787.0,2.64058997]
[1760153426787,0.441,3789.8,3787.1,0.0144]
[1760153426988,0.2335,3790.1,3787.1,0.648]
[1760153427190,0.441,3790.7,3788.0,0.6336]
[1760153427365,0.441,3791.3,3788.3,0.6336]
[1760153427689,0.001,3792.0,3788.5,0.6336]
[1760153427891,0.442,3792.0,3788.8,2.63932144]
[1760153428108,0.441,3791.9,3788.9,0.0144]
[1760153428308,0.41380024,3791.6,3788.9,0.0144]
[1760153428689,1.92,3791.4,3788.5,0.42016636]
[1760153429005,3.07848672,3791.5,3788.5,0.42016636]
[1760153429207,1.31352535,3791.2,3788.5,0.42016636]
[1760153429410,1.92,3790.9,3786.7,14.20938652]
[1760153429596,0.441,3791.1,3788.4,2.63962482]
[1760153429908,0.441,3791.1,3788.2,3.43473168]
[1760153430109,0.441,3791.1,3788.2,0.79499682]
[1760153430274,0.441,3791.8,3788.2,0.79499682]
[1760153430782,0.441,3791.7,3788.3,3.27330646]
[1760153430983,0.441,3791.7,3788.3,0.6336]
[1760153431207,0.001,3792.0,3789.0,0.6336]
[1760153431371,0.001,3792.0,3789.6,0.6336]
[1760153431578,0.001,3792.0,3789.9,0.6336]
[1760153431974,0.001,3792.0,3789.6,3.27233453]
[1760153432214,0.001,3792.0,3790.1,0.6336]
[1760153432510,0.001,3792.0,3790.0,0.442]
[1760153432691,0.001,3792.0,3790.1,0.6336]
[1760153433093,0.001,3792.0,3789.7,0.6336]
[1760153433289,0.41373202,3791.6,3789.7,0.6336]
[1760153433489,0.41373202,3791.6,3788.2,14.20938652]
[1760153433888,0.41373202,3791.6,3789.4,0.6745]
[1760153434094,0.41373202,3791.6,3789.5,0.6336]
[1760153434300,0.001,3792.0,3789.5,0.6336]
[1760153434715,0.001,3792.0,3790.3,0.6336]
[1760153434894,0.001,3792.0,3790.3,3.27189747]
[1760153435209,0.001,3792.0,3789.9,0.6336]
[1760153435409,0.001,3792.0,3790.3,0.6336]
[1760153435777,0.001,3792.0,3789.7,0.6336]
[1760153436010,0.001,3792.0,3789.5,3.2724262]
[1760153436185,0.001,3792.0,3789.5,0.6336]
[1760153436389,0.001,3792.0,3789.8,0.6336]
[1760153436584,0.001,3792.0,3789.5,0.6336]
[1760153436884,0.2335,3791.9,3789.5,0.6336]
[1760153437081,0.2335,3791.9,3789.4,0.6745]
[1760153437280,2.87071866,3791.9,3789.4,0.6745]
[1760153437525,0.41377986,3791.3,3789.4,0.6745]
[1760153437829,0.41377986,3791.3,3789.0,0.6336]
[1760153438127,0.41377986,3791.3,3788.8,2.6393565]
[1760153438285,0.41377986,3791.3,3788.9,0.6336]
[1760153438479,0.41377986,3791.3,3790.2,0.6336]
[1760153438686,0.13783478,3791.8,3790.5,0.6336]
[1760153438930,0.13783478,3791.8,3790.4,14.20938652]
[1760153439128,0.13783478,3791.8,3791.2,0.6336]
[1760153439415,0.13783478,3791.8,3790.9,0.6336]
[1760153439620,0.13783478,3791.8,3791.1,0.6336]
[1760153439805,0.13783478,3791.8,3790.6,0.6336]
[1760153442604,0.13783478,3791.8,3791.3,0.6336]
[1760153443396,0.13783478,3791.8,3791.0,0.6336]
[1760153443595,0.13783478,3791.8,3790.3,0.6336]
[1760153443823,0.13783478,3791.8,3791.5,0.6336]
[1760153445607,0.13783478,3791.8,3791.7,3.27093945]
[1760153446712,0.001,3792.0,3791.9,3.27080034]
[1760153449299,0.001,3792.8,3792.3,3.27052218]
[1760153449537,0.001,3792.8,3792.3,17.4799087]
[1760153450668,0.001,3792.8,3792.3,17.58575526]
[1760153451354,0.001,3792.8,3792.3,16.95215526]
[1760153451554,0.001,3792.8,3792.3,0.10584656]
[1760153451925,0.001,3792.8,3791.6,14.20938652]
[1760153452126,0.001,3792.8,3791.7,0.1058914]
[1760153452769,0.001,3792.8,3790.9,14.20938652]
[1760153452971,0.41353193,3792.5,3790.9,14.20938652]
[1760153453184,0.41353193,3792.5,3791.1,0.1059085]
[1760153453680,0.41353193,3792.5,3790.3,14.01684322]
[1760153453853,0.41353193,3792.5,3790.2,2.63835804]
[1760153453854,0.41353193,3792.5,3790.4,0.6336]
[1760153454053,0.41353193,3792.5,3791.0,0.41353193]
[1760153454417,0.41353193,3792.5,3791.1,0.01388488]
[1760153454563,0.41353193,3792.5,3790.4,0.01388488]
[1760153454741,0.001,3792.8,3789.6,0.6336]
[1760153454941,0.001,3792.8,3791.0,0.6336]
[1760153455141,0.001,3792.8,3791.9,0.6336]
[1760153455485,0.001,3792.8,3791.7,3.27090904]
[1760153455663,0.001,3792.8,3791.2,0.6336]
[1760153455864,0.001,3792.8,3792.1,0.6336]
[1760153456071,0.001,3792.8,3792.3,0.6336]
[1760153456682,0.001,3792.8,3792.1,0.6336]
[1760153457062,0.001,3792.8,3792.3,3.27052218]
[1760153458785,0.001,3792.8,3792.7,3.27024407]
[1760153460958,0.001,3792.8,3792.7,3.29661051]
[1760153461597,0.001,3792.8,3792.7,3.40144407]
[1760153461758,0.001,3793.2,3793.1,3.26996603]
[1760153461962,0.001,3794.1,3794.0,3.26934064]
[1760153461963,1e-08,3794.1,3794.0,3.26934064]
[1760153462579,1e-08,3794.1,3794.0,3.40713589]
[1760153464094,1e-08,3794.1,3794.0,3.53833589]
[1760153464407,1e-08,3794.1,3794.0,5.45833589]
[1760153464619,0.001,3794.5,3794.4,3.26906278]
[1760153464906,0.001,3794.5,3794.4,5.18906278]
[1760153465109,0.001,3797.0,3796.9,3.26732751]
[1760153465611,0.001,3797.0,3796.9,3.42486478]
[1760153465763,0.001,3797.0,3796.9,3.53058014]
[1760153465963,0.001,3797.0,3796.9,3.37304287]
[1760153466272,0.001,3799.8,3797.2,3.26711943]
[1760153468302,0.001,3799.8,3797.2,0.6336]
[1760153468512,0.001,3799.8,3797.2,3.26711943]
[1760153469874,0.001,3799.8,3797.2,3.28937973]
[1760153470666,0.001,3799.8,3797.2,0.0222603]
[1760153470667,0.41383837,3799.3,3797.2,0.0222603]
[1760153470869,0.41383837,3799.3,3796.9,0.10571536]
[1760153471592,0.4424,3799.0,3795.8,2.63445634]
[1760153471793,0.4424,3798.7,3793.4,2.63615753]
[1760153471992,0.41301978,3797.0,3794.9,0.10578134]
[1760153472360,0.41301978,3797.0,3795.1,0.6336]
[1760153472564,0.41301978,3797.0,3794.9,2.74086084]
[1760153472760,0.41301978,3797.0,3794.9,0.10578134]
[1760153472991,0.4424,3797.0,3793.3,1.27253113]
[1760153473209,0.4424,3797.0,3793.4,2.63615753]
[1760153473494,0.4131949,3796.5,3794.1,2.63565517]
[1760153473695,0.4131949,3796.5,3793.3,1.27253113]
[1760153473897,0.4131949,3796.5,3792.7,0.79367284]
[1760153473898,0.8555949,3796.5,3792.7,0.79367284]
[1760153474203,0.8555949,3796.5,3792.2,2.63699171]
[1760153474367,0.4424,3796.5,3792.2,0.79376733]
[1760153474712,0.4132908,3795.5,3792.2,0.79376733]
[1760153474916,0.4132908,3795.5,3792.2,2.63699171]
[1760153475067,0.4132908,3795.5,3792.0,0.79581774]
[1760153475579,2.63494859,3795.2,3792.0,0.002]
[1760153475780,2.63512558,3794.9,3792.0,0.002]
[1760153476105,0.4497,3795.1,3792.0,0.002]
[1760153476312,1.92,3794.9,3792.0,0.002]
[1760153476514,2.3697,3794.8,3792.0,0.002]
[1760153476668,1.92,3794.5,3792.0,0.002]
[1760153476868,2.3697,3794.8,3792.0,0.002]
[1760153477087,5.00489282,3794.8,3792.0,0.002]
[1760153477330,0.4497,3794.8,3792.0,0.002]
[1760153477828,0.4497,3795.5,3792.0,0.002]
[1760153478041,0.4497,3795.5,3792.8,2.63654011]
[1760153478320,2.63442643,3795.9,3793.1,0.6336]
[1760153478485,0.2211,3796.0,3793.0,2.63643445]
[1760153478688,0.4497,3795.9,3792.7,2.6366423]
[1760153478902,0.4497,3795.9,3792.2,2.63699171]
[1760153479122,0.4497,3795.9,3793.3,0.6336]
[1760153479417,0.001,3797.3,3793.5,0.6336]
[1760153479418,0.4497,3797.0,3793.5,0.6336]
[1760153479794,0.4497,3797.0,3792.4,2.63679556]
[1760153479795,0.4497,3797.0,3794.4,2.63544199]
[1760153479996,0.41323494,3796.2,3793.3,2.63619974]
[1760153480201,0.41323494,3796.2,3793.4,0.6336]
[1760153480507,0.41323494,3796.2,3791.7,1.92]
[1760153480508,0.41323494,3796.2,3793.7,0.6336]
[1760153480722,0.41323494,3796.2,3793.8,0.02206276]
[1760153480897,1.92,3796.3,3793.8,0.02206276]
[1760153481091,1.92,3796.5,3793.8,0.02206276]
[1760153481290,0.41327351,3795.7,3793.9,0.02206217]
[1760153481713,0.41327351,3795.7,3794.0,0.65566158]
[1760153482021,0.41327351,3795.7,3794.0,0.02206158]
[1760153482222,2.63394073,3796.6,3794.0,0.02206158]
[1760153482223,1.92,3796.6,3794.0,0.02206158]
[1760153482421,2.63399998,3796.6,3793.7,0.6336]
[1760153482638,0.41326038,3795.3,3793.7,0.6336]
[1760153482791,1.921,3797.3,3793.1,0.6336]
[1760153483118,0.4132574,3795.6,3793.6,2.63601855]
[1760153483423,0.001,3797.3,3795.2,3.26850135]
[1760153483737,0.41322005,3796.4,3795.2,0.6336]
[1760153484035,0.001,3797.3,3795.5,0.6336]
[1760153484230,0.41316378,3796.8,3795.5,0.6336]
[1760153484534,0.001,3797.3,3795.6,0.6336]
[1760153484717,0.001,3797.3,3794.7,0.6336]
[1760153484914,0.001,3797.3,3794.7,3.26885443]
[1760153485216,0.001,3797.3,3795.5,0.6336]
[1760153485614,0.001,3797.3,3794.7,0.6336]
[1760153485825,0.001,3797.3,3795.0,1.92]
[1760153486026,0.001,3797.3,3797.0,0.6336]
[1760153486217,0.001,3797.3,3797.2,3.26711943]
[1760153488855,0.001,3797.3,3797.2,0.6336]
[1760153489020,0.001,3797.3,3793.7,2.63591769]
[1760153489225,0.001,3797.3,3796.3,2.63413103]
[1760153489424,0.001,3797.3,3796.7,2.63380425]
[1760153489763,0.001,3797.3,3796.8,2.63375945]
[1760153489949,0.001,3797.3,3797.1,2.63354218]
[1760153490260,0.001,3797.3,3796.0,0.10574862]
[1760153490261,0.001,3797.3,3796.5,2.63394818]
[1760153490465,0.001,3797.3,3796.3,2.63411625]
[1760153490779,0.001,3797.3,3796.0,0.10574862]
[1760153490780,0.001,3797.3,3796.4,2.63406872]
[1760153490963,0.001,3797.3,3795.8,0.10575533]
[1760153491140,0.41296838,3797.2,3796.0,2.63434631]
[1760153491336,0.41296838,3797.2,3795.7,2.63454643]
[1760153491337,0.41296838,3797.2,3795.2,2.63490563]
[1760153491554,0.001,3797.3,3795.1,0.10577351]
[1760153491737,0.41308966,3797.1,3793.5,2.63606103]
[1760153491938,0.41308966,3797.1,3794.4,0.41296838]
[1760153492139,0.41308966,3797.1,3795.1,2.63497529]
[1760153492398,0.41308966,3797.1,3795.2,2.63490318]
[1760153492683,0.41308966,3797.1,3793.8,0.002]
[1760153492684,0.41308966,3797.1,3796.1,0.6336]
[1760153492971,0.41308966,3797.1,3796.4,0.6336]
[1760153493135,0.001,3797.3,3796.8,0.6336]
[1760153493637,0.001,3797.3,3796.7,0.6336]
[1760153493971,0.001,3797.3,3796.6,0.6336]
[1760153494463,0.001,3797.3,3796.4,0.6336]
[1760153494662,0.001,3797.3,3796.7,0.6336]
[1760153495034,0.001,3797.3,3797.0,0.6336]
[1760153495231,0.001,3797.3,3797.2,2.63351943]
[1760153495464,0.001,3797.3,3797.2,0.6336]
[1760153495666,0.001,3797.3,3797.2,3.26711943]
[1760153496076,0.001,3797.3,3797.2,0.65993519]
[1760153496292,0.001,3797.3,3794.0,2.63574064]
[1760153496455,0.001,3797.3,3796.0,2.63428367]
[1760153496656,0.001,3797.3,3796.1,0.10575142]
[1760153496855,0.001,3797.3,3796.2,0.6336]
[1760153497054,0.001,3797.3,3794.7,0.6336]
[1760153497258,0.001,3797.3,3796.8,0.6336]
[1760153497665,0.001,3797.3,3796.6,3.26753247]
[1760153497868,0.001,3797.3,3793.1,2.63635984]
[1760153498172,0.001,3797.3,3794.4,1.92]
[1760153498375,0.001,3797.3,3796.8,0.6336]
[1760153498543,0.001,3797.3,3795.9,2.63435726]
[1760153498741,0.001,3797.3,3795.8,0.6336]
[1760153498942,0.41415355,3797.3,3795.8,0.6336]
[1760153499146,0.41415355,3797.3,3796.2,0.6336]
[1760153499384,0.001,3797.3,3795.6,0.6336]
[1760153499549,0.001,3797.3,3795.5,0.1312]
[1760153499550,0.001,3797.3,3796.8,0.6336]
[1760153499886,0.001,3797.3,3796.1,0.41415355]
[1760153500060,0.001,3797.3,3796.2,3.26775193]
[1760153500255,0.001,3797.3,3796.2,0.6336]
[1760153501293,0.001,3797.3,3796.8,0.6336]
[1760153501448,0.001,3797.3,3797.0,0.6336]
[1760153501788,0.001,3797.3,3797.2,3.26711943]
[1760153501970,0.001,3797.3,3797.2,3.29345462]
[1760153502295,0.001,3797.3,3797.2,4.69711943]
[1760153503077,0.001,3797.3,3797.2,19.19711943]
[1760153503984,0.001,3797.3,3797.2,17.76711943]
[1760153504389,0.41298457,3798.8,3798.0,3.26656471]
[1760153504589,0.2211,3802.1,3798.0,3.26656471]
[1760153504789,0.4497,3801.8,3798.0,3.26656471]
[1760153504989,2.63047292,3801.6,3798.0,3.26656471]
[1760153505191,0.4497,3801.3,3798.0,17.76656471]
[1760153505358,2.63041254,3801.7,3798.0,17.76656471]
[1760153505564,0.4702,3801.8,3798.0,17.76656471]
[1760153505889,3.10081893,3801.4,3798.0,17.76656471]
[1760153506192,0.4702,3801.4,3798.0,17.76656471]
[1760153506378,0.005,3801.9,3798.0,17.76656471]
[1760153507096,0.005,3801.9,3798.8,3.26601023]
[1760153507469,0.41282932,3800.4,3798.8,3.26601023]
[1760153508287,1e-08,3798.9,3798.8,3.26601023]
[1760153508474,1e-08,3798.9,3798.8,3.37166947]
[1760153508673,1e-08,3798.9,3798.8,19.92286947]
[1760153509201,0.13789558,3800.8,3799.6,2.63185598]
[1760153509367,0.13789558,3800.8,3799.6,3.26545598]
[1760153512433,0.13789558,3800.8,3799.6,3.37111075]
[1760153512795,0.13789558,3800.8,3799.6,17.87111075]
[1760153513699,0.13789558,3800.8,3799.7,3.26538672]
[1760153515599,0.005,3801.9,3799.7,2.0636]
[1760153515831,0.005,3801.9,3800.8,0.6336]
[1760153516031,0.13787943,3801.4,3800.8,0.6336]
[1760153516970,0.13787943,3801.4,3800.8,3.26462504]
[1760153517132,0.13787943,3801.4,3800.8,0.6336]
[1760153517667,0.13787943,3801.4,3799.7,14.5]
[1760153517955,0.13787943,3801.4,3800.5,0.6336]
[1760153518155,0.13787943,3801.4,3799.6,0.10565477]
[1760153518360,0.13787943,3801.4,3800.1,0.6336]
[1760153518658,0.13787943,3801.4,3800.2,0.0263144]
[1760153519363,0.13787943,3801.4,3800.3,0.6336]
[1760153519527,0.13787943,3801.4,3800.4,0.02631301]
[1760153519727,0.13787943,3801.4,3800.5,0.02631034]
[1760153519923,0.13787943,3801.4,3800.6,0.02630766]
[1760153520528,0.13787943,3801.4,3800.2,15.1336]
[1760153521065,0.13787943,3801.4,3797.7,2.63311967]
[1760153521235,0.13787943,3801.4,3798.9,0.41268017]
[1760153521567,0.41275868,3800.8,3798.9,0.41268017]
[1760153521769,0.76529875,3800.8,3796.9,2.63366845]
[1760153521947,0.76529875,3800.8,3796.7,13.1082514]
[1760153521948,1.92,3800.6,3798.1,0.6672]
[1760153522119,1.92,3800.7,3798.1,0.6672]
[1760153522323,1.92,3800.4,3798.1,0.6672]
[1760153522624,0.4499,3800.4,3798.1,0.6672]
[1760153522821,0.4129231,3799.9,3797.6,0.6336]
[1760153523020,0.4129231,3799.9,3797.3,0.7929428]
[1760153523220,0.4129231,3799.9,3797.0,0.002]
[1760153523221,1.92,3799.4,3797.0,0.002]
[1760153523524,0.4499,3799.8,3797.0,0.002]
[1760153523725,0.4499,3799.3,3797.0,0.002]
[1760153524156,0.413017,3799.2,3797.0,0.002]
[1760153524334,2.63203595,3799.4,3797.0,0.002]
[1760153524335,1.92,3799.7,3797.0,2.63559284]
[1760153524540,1.67794449,3801.0,3797.0,2.63559284]